bitfinex/quotes_ETHUSD_20260121
["timestamp","ask_amount","ask_price","bid_price","bid_amount"]
[1769018334684,6.2859921,2907.1,2905.4,6.02053256]
[1769018334887,6.87994496,2907.0,2905.4,6.02053256]
[1769018335047,10.31991744,2907.0,2905.4,6.02053256]
[1769018335398,7.94658305,2906.9,2905.4,6.02053256]
[1769018335551,7.94658305,2906.9,2904.7,4.01361486]
[1769018335552,6.2859921,2906.7,2904.8,6.02053256]
[1769018335754,1.69758123,2906.9,2904.8,6.02053256]
[1769018335755,6.2859921,2906.6,2904.8,6.02053256]
[1769018337083,10.32169275,2906.5,2904.8,6.02053256]
[1769018337778,6.8811285,2906.5,2904.9,6.02053256]
[1769018337980,6.8811285,2906.5,2904.7,0.571]
[1769018337981,1.31671206,2906.4,2905.0,6.9668394]
[1769018338274,6.8811285,2906.5,2905.0,6.9668394]
[1769018338957,3.44035412,2906.7,2905.0,6.9668394]
[1769018339152,6.88041832,2906.8,2905.1,5.96185509]
[1769018339377,10.32062748,2906.8,2905.1,5.96185509]
[1769018339680,1.85743879,2906.7,2905.3,5.96185509]
[1769018340051,10.32062748,2906.8,2905.3,5.96185509]
[1769018340980,6.88089176,2906.6,2905.2,1.02722354]
[1769018341155,6.88089176,2906.6,2905.2,5.96185509]
[1769018341557,3.44044588,2906.6,2905.2,5.96185509]
[1769018341782,3.44044588,2906.6,2905.2,3.44206797]
[1769018341962,3.44044588,2906.6,2905.3,5.96185509]
[1769018342454,6.88089176,2906.6,2905.3,5.96185509]
[1769018342987,6.87994496,2907.0,2905.3,5.96185509]
[1769018343182,0.6879945,2906.9,2905.3,6.90225004]
[1769018343883,5.98717923,2906.8,2905.3,6.90225004]
[1769018344082,5.98717923,2906.8,2905.3,5.96185509]
[1769018345281,16.30816176,2906.7,2905.4,0.002]
[1769018345483,6.88065502,2906.7,2905.4,0.002]
[1769018346501,3.44032751,2906.7,2905.4,5.96385509]
[1769018346711,3.4396641,2907.3,2905.6,5.96185509]
[1769018347011,10.31894571,2907.3,2905.6,5.96185509]
[1769018347460,13.75860981,2907.3,2905.6,5.96185509]
[1769018347659,10.31894571,2907.3,2905.6,5.96185509]
[1769018350506,13.75860981,2907.3,2905.6,5.96185509]
[1769018350663,5.98717923,2907.1,2905.6,5.96185509]
[1769018350863,1.9745789,2907.2,2905.6,5.96185509]
[1769018351401,6.8797083,2907.1,2905.6,5.96185509]
[1769018351567,10.31956245,2907.1,2905.6,5.96185509]
[1769018353190,10.31451975,2907.1,2905.6,5.96185509]
[1769018353391,1.22890986,2907.0,2905.7,6.65209895]
[1769018355476,6.88018162,2906.9,2905.7,6.65209895]
[1769018355887,3.44009081,2906.9,2905.7,6.65209895]
[1769018356908,6.88018162,2906.9,2905.7,6.65209895]
[1769018357077,7.56819978,2906.9,2905.8,0.6652099]
[1769018358003,7.56819978,2906.9,2905.8,7.06235106]
[1769018359188,4.12810897,2906.9,2905.8,7.06235106]
[1769018359803,7.56819978,2906.9,2905.8,7.06235106]
[1769018361309,4.12810897,2906.9,2905.8,7.06235106]
[1769018361496,3.44002334,2907.0,2906.0,6.39714116]
[1769018361698,6.8797083,2907.1,2906.0,6.39714116]
[1769018363802,10.31814273,2907.5,2906.0,6.39714116]
[1769018366419,5.87191512,2907.4,2906.0,6.39714116]
[1769018367389,5.87191512,2907.3,2905.7,6.39714116]
[1769018367894,5.87191512,2907.1,2905.7,6.39714116]
[1769018368478,5.87191512,2907.1,2905.6,0.002]
[1769018368906,5.87191512,2907.1,2905.6,6.39914116]
[1769018369078,6.87947164,2907.2,2905.6,6.39914116]
[1769018369279,0.74484716,2907.1,2905.8,6.39714116]
[1769018370015,6.87994496,2907.0,2905.8,6.39714116]
[1769018370175,10.31991744,2907.0,2905.8,6.39714116]
[1769018371011,6.87994496,2907.0,2905.8,6.39714116]
[1769018371779,10.31991744,2907.0,2905.8,6.39714116]
[1769018371979,10.32062748,2906.8,2905.8,7.10104669]
[1769018372178,5.87191512,2906.7,2905.6,0.002]
[1769018372378,10.88962748,2906.8,2905.9,0.002]
[1769018372599,1.19961039,2906.7,2905.9,0.002]
[1769018372812,5.87191512,2906.6,2905.9,0.002]
[1769018372985,5.87191512,2906.6,2905.6,0.002]
[1769018373190,5.87191512,2906.6,2905.4,0.002]
[1769018373587,5.87191512,2906.3,2905.4,0.002]
[1769018373788,0.03699028,2906.5,2905.4,0.002]
[1769018373789,7.45910663,2906.2,2905.4,0.002]
[1769018373989,5.87191512,2906.2,2905.4,0.002]
[1769018374230,13.76415124,2906.1,2905.4,0.002]
[1769018374436,5.87191512,2906.0,2905.1,0.002]
[1769018374595,10.32311343,2906.1,2905.1,0.002]
[1769018374795,0.569,2906.0,2905.1,0.002]
[1769018375016,1.08921134,2905.9,2905.1,0.002]
[1769018375611,1.08921134,2905.9,2905.1,6.39914116]
[1769018376128,6.88278614,2905.8,2905.1,6.39914116]
[1769018376484,6.88278614,2905.8,2905.1,0.002]
[1769018378381,3.44139307,2905.8,2905.1,6.39914116]
[1769018378584,5.87191512,2906.4,2905.1,6.39914116]
[1769018378810,1.50395246,2906.3,2905.1,6.39914116]
[1769018380285,10.32275823,2906.2,2905.1,6.39914116]
[1769018381519,6.88183882,2906.2,2905.1,6.39914116]
[1769018381920,10.32275823,2906.2,2905.1,6.39914116]
[1769018382820,6.88183882,2906.2,2905.1,6.39914116]
[1769018383039,0.83857913,2906.1,2905.1,6.39914116]
[1769018384421,0.83857913,2906.1,2905.3,0.002]
[1769018384618,6.88231244,2906.0,2905.3,0.002]
[1769018387547,3.44115622,2906.0,2905.3,6.09310129]
[1769018387755,3.86922975,2906.0,2905.3,6.09310129]
[1769018388449,0.001,2906.1,2905.3,6.09310129]
[1769018389547,0.001,2906.1,2905.3,0.002]
[1769018391942,0.001,2906.1,2905.3,6.09310129]
[1769018394147,0.001,2906.1,2905.3,0.002]
[1769018395566,6.54458737,2906.0,2905.1,0.002]
[1769018395729,6.54458737,2905.8,2905.1,0.002]
[1769018396351,6.54458737,2905.8,2905.0,0.002]
[1769018397149,3.44151151,2905.7,2905.0,0.002]
[1769018397655,6.88302302,2905.7,2905.0,0.002]
[1769018398261,6.54458737,2905.6,2905.0,0.002]
[1769018398463,7.88734841,2905.5,2905.0,0.002]
[1769018398966,7.88734841,2905.5,2904.7,0.002]
[1769018399121,3.44186686,2905.4,2904.7,0.002]
[1769018400357,6.88373372,2905.4,2904.7,0.002]
[1769018401360,13.10632189,2905.5,2904.7,0.002]
[1769018401541,1.31063219,2905.4,2904.7,0.002]
[1769018403375,3.44198533,2905.3,2904.7,0.002]
[1769018403530,4.75254355,2905.4,2904.7,0.002]
[1769018403737,8.19445491,2905.4,2904.7,0.002]
[1769018405378,0.001,2905.9,2904.8,6.46923808]
[1769018405625,0.001,2906.1,2905.0,6.46923808]
[1769018405934,6.22282509,2907.1,2905.2,6.46923808]
[1769018406138,6.87923502,2907.3,2905.6,6.46923808]
[1769018406373,1.31020601,2907.2,2905.8,6.46923808]
[1769018406578,6.22282509,2908.3,2906.3,6.46923808]
[1769018407573,6.22282509,2908.3,2906.0,0.07632396]
[1769018407574,3.43819838,2908.5,2906.5,6.46923808]
[1769018407871,3.43819838,2908.5,2906.9,6.46923808]
[1769018408056,16.53746005,2908.5,2906.9,6.46923808]
[1769018408243,13.09924176,2908.5,2906.9,6.46923808]
[1769018408448,1.65373624,2908.4,2907.0,7.11616189]
[1769018409365,6.87641667,2908.5,2907.0,7.11616189]
[1769018409551,6.87596062,2908.7,2907.0,7.11616189]
[1769018409747,10.31395927,2908.7,2907.0,7.11616189]
[1769018410150,6.25981537,2908.6,2906.1,6.46923808]
[1769018410342,6.22282509,2908.4,2906.1,6.46923808]
[1769018410647,6.22282509,2908.2,2906.1,6.46923808]
[1769018411780,6.22282509,2908.0,2906.1,6.46923808]
[1769018412079,6.22282509,2907.6,2905.8,6.46923808]
[1769018412238,6.79182509,2907.6,2905.8,6.46923808]
[1769018412766,6.79182509,2907.6,2905.7,0.6545562]
[1769018412767,7.14796049,2907.6,2905.7,0.6545562]
[1769018413071,6.22282509,2907.4,2905.4,6.46923808]
[1769018413273,6.22282509,2907.4,2905.4,3.44179761]
[1769018413444,6.22282509,2907.4,2905.5,6.46923808]
[1769018413838,6.22282509,2907.2,2905.5,6.46923808]
[1769018414876,6.87923502,2907.3,2905.6,6.46923808]
[1769018415171,0.6879235,2907.2,2905.8,6.46923808]
[1769018415889,6.8797083,2907.1,2905.8,6.46923808]
[1769018416647,3.43985415,2907.1,2905.8,6.46923808]
[1769018416905,3.43965681,2907.3,2905.8,6.46923808]
[1769018417056,16.87586875,2907.9,2905.9,7.07661587]
[1769018417664,6.8778156,2907.9,2906.1,6.3305822]
[1769018417868,6.8778156,2907.9,2906.2,6.3305822]
[1769018418079,6.8778156,2907.9,2906.0,0.07632396]
[1769018418080,1.16921285,2907.8,2906.4,6.3305822]
[1769018418477,3.4389078,2907.9,2906.4,6.3305822]
[1769018418692,6.8778156,2907.9,2906.4,6.3305822]
[1769018419267,10.3167234,2907.9,2906.4,6.3305822]
[1769018419793,6.55914535,2907.8,2906.0,6.3305822]
[1769018419994,8.56587556,2907.7,2906.2,6.3305822]
[1769018420694,6.87828868,2907.7,2906.2,6.3305822]
[1769018421503,6.87928868,2907.7,2906.2,6.3305822]
[1769018422013,6.56014535,2907.7,2906.1,1.01705822]
[1769018422173,6.56014535,2907.7,2905.3,6.3305822]
[1769018422174,6.55914535,2907.5,2905.3,6.3305822]
[1769018422374,6.55914535,2907.5,2905.4,6.3305822]
[1769018423982,6.55914535,2907.3,2905.4,6.3305822]
[1769018424306,6.55914535,2907.1,2905.2,0.002]
[1769018424510,0.3561354,2907.0,2905.2,0.002]
[1769018424674,6.55914535,2906.9,2905.2,0.002]
[1769018425801,0.3561354,2907.0,2905.2,0.002]
[1769018425802,6.55914535,2906.5,2905.2,0.002]
[1769018425975,6.55914535,2906.3,2905.2,0.002]
[1769018426174,6.55914535,2906.1,2905.0,0.002]
[1769018426371,7.12814535,2906.1,2905.0,0.002]
[1769018426612,7.12814535,2906.1,2904.7,0.002]
[1769018428410,6.55914535,2905.9,2904.7,0.002]
[1769018429377,6.55914535,2905.5,2904.5,0.002]
[1769018429584,6.55914535,2905.5,2903.9,0.002]
[1769018430311,10.32560058,2905.4,2903.9,0.002]
[1769018430811,16.88474593,2905.4,2903.9,0.002]
[1769018431188,20.32661279,2905.4,2903.9,0.002]
[1769018431389,20.32661279,2905.4,2903.9,0.63545822]
[1769018431390,2.03266128,2905.3,2903.9,0.63545822]
[1769018432513,6.88420762,2905.2,2903.9,0.63545822]
[1769018432891,6.88420762,2905.2,2904.9,0.002]
[1769018433083,10.32631143,2905.2,2903.9,0.63545822]
[1769018433284,10.32631143,2905.2,2904.6,0.002]
[1769018433497,1.23589727,2905.1,2903.9,0.63545822]
[1769018434294,6.55914535,2905.0,2903.3,0.002]
[1769018434697,6.55914535,2904.8,2903.3,0.002]
[1769018436528,6.55914535,2904.6,2903.3,1e-08]
[1769018436715,6.55914535,2904.4,2903.3,1e-08]
[1769018438704,6.55914535,2904.2,2902.4,6.3325822]
[1769018439027,6.55914535,2904.0,2902.4,6.3325822]
[1769018439329,6.55914535,2904.1,2902.4,0.002]
[1769018439494,6.55914535,2904.1,2902.4,6.96584042]
[1769018439695,7.12814535,2904.0,2902.4,6.96584042]
[1769018439901,7.12814535,2904.0,2902.4,6.3325822]
[1769018440442,6.55914535,2904.0,2902.4,6.3325822]
[1769018440732,6.8872895,2903.9,2902.4,6.3325822]
[1769018440918,10.33093425,2903.9,2902.4,6.3325822]
[1769018441119,6.8872895,2903.9,2902.4,6.3325822]
[1769018441431,1.34464349,2903.8,2902.6,6.3305822]
[1769018442735,6.88776388,2903.7,2902.6,6.3305822]
[1769018443225,4.78843922,2903.8,2902.6,6.3305822]
[1769018443226,1.34464349,2903.8,2902.6,6.3305822]
[1769018443429,3.44385757,2903.8,2902.6,6.3305822]
[1769018444377,6.88634094,2904.3,2902.7,6.3305822]
[1769018444648,10.32951141,2904.3,2902.7,6.3305822]
[1769018445150,6.55914535,2904.2,2902.5,0.63325822]
[1769018445349,8.59232807,2904.1,2902.4,6.3325822]
[1769018445751,6.66241124,2904.0,2902.4,6.3325822]
[1769018445948,6.66241124,2904.0,2902.8,0.002]
[1769018446248,0.03699028,2903.8,2902.8,0.002]
[1769018446449,0.03699028,2903.8,2901.1,6.72779157]
[1769018446450,6.66241124,2903.5,2901.1,6.72779157]
[1769018446652,6.66241124,2903.3,2901.2,7.78457073]
[1769018446837,6.66241124,2903.1,2901.4,0.002]
[1769018447964,13.77790024,2903.2,2901.4,0.002]
[1769018447965,6.88895012,2903.2,2901.4,6.72979157]
[1769018448250,0.68889501,2903.1,2901.6,6.72779157]
[1769018448851,0.68889501,2903.1,2901.7,6.72779157]
[1769018449054,0.569,2903.7,2901.7,6.72779157]
[1769018449252,6.88776388,2903.7,2901.7,6.72779157]
[1769018449556,3.44388194,2903.7,2901.7,6.80411553]
[1769018449722,4.11374757,2903.8,2901.9,6.80411553]
[1769018449922,4.11374757,2903.8,2902.1,6.72779157]
[1769018450122,7.55755499,2903.8,2902.1,6.72779157]
[1769018450354,4.11374757,2903.8,2902.1,6.72779157]
[1769018450933,7.55755499,2903.8,2902.3,6.72779157]
[1769018451148,11.00136241,2903.8,2902.3,6.72779157]
[1769018451354,1.76637736,2903.7,2902.4,0.62013967]
[1769018451654,8.4287886,2903.7,2902.4,0.62013967]
[1769018451858,8.4287886,2903.7,2902.0,6.72779157]
[1769018452035,6.66241124,2903.6,2902.0,6.72779157]
[1769018452859,10.33235748,2903.5,2902.0,6.72779157]
[1769018453063,6.88823832,2903.5,2902.0,6.72779157]
[1769018453439,10.33235748,2903.5,2902.0,6.72779157]
[1769018453622,1.69947687,2903.4,2902.1,0.67277916]
[1769018454026,1.69947687,2903.4,2902.1,7.40057073]
[1769018454326,3.44411916,2903.5,2902.1,7.40057073]
[1769018454726,6.88823832,2903.5,2902.1,7.40057073]
[1769018454959,6.88765782,2903.8,2902.2,6.72779157]
[1769018456372,6.88765782,2903.8,2902.1,7.56433041]
[1769018456373,3.44320106,2904.3,2902.4,6.72779157]
[1769018456536,1.08993049,2904.2,2902.6,6.72779157]
[1769018456867,13.77410468,2904.0,2901.7,6.72779157]
[1769018457042,6.66241124,2903.9,2901.7,6.72779157]
[1769018457248,6.69940152,2903.6,2901.8,0.67277916]
[1769018457456,6.69940152,2903.6,2901.4,6.72979157]
[1769018457843,6.66241124,2903.5,2901.4,0.002]
[1769018458080,6.69940152,2902.6,2901.4,0.002]
[1769018458779,6.69940152,2902.6,2900.9,0.002]
[1769018458955,6.89108636,2902.3,2900.9,0.002]
[1769018459156,6.89108636,2902.3,2902.0,0.002]
[1769018459344,6.89108636,2902.3,2900.9,0.002]
[1769018459545,10.33662954,2902.3,2900.9,0.002]
[1769018459778,6.89108636,2902.3,2900.9,0.002]
[1769018459984,1.37122897,2902.2,2900.9,0.002]
[1769018460821,8.1924323,2902.2,2900.9,0.002]
[1769018460986,17.15854525,2902.1,2900.9,0.002]
[1769018461191,6.82120333,2902.0,2900.9,0.002]
[1769018462028,6.82120333,2902.0,2900.6,0.002]
[1769018462271,2.40501065,2901.9,2900.6,0.002]
[1769018462476,0.57,2902.0,2900.6,6.62065594]
[1769018462805,10.90734192,2902.1,2900.6,6.62065594]
[1769018463121,6.82120333,2902.0,2900.6,0.002]
[1769018464226,0.57,2901.9,2900.6,0.002]
[1769018464523,7.39120333,2901.9,2900.6,0.002]
[1769018464674,6.82120333,2901.7,2900.6,0.002]
[1769018465068,10.33912323,2901.6,2900.6,0.002]
[1769018465267,10.33912323,2901.6,2900.0,0.002]
[1769018465500,0.57,2901.5,2900.0,6.62065594]
[1769018465847,3.44637441,2901.6,2900.0,6.62065594]
[1769018465974,3.44578064,2902.1,2900.1,7.35704549]
[1769018466313,6.89141094,2902.2,2900.1,7.35704549]
[1769018466826,3.44542447,2902.4,2900.4,6.61865594]
[1769018466972,3.44542447,2902.4,2900.8,6.61865594]
[1769018467173,6.89084894,2902.4,2900.8,6.61865594]
[1769018467414,3.44542447,2902.4,2900.8,6.61865594]
[1769018467576,3.44471236,2903.0,2901.1,6.61865594]
[1769018467915,6.88942472,2903.0,2901.1,6.61865594]
[1769018468108,1.03340499,2902.9,2901.3,6.61865594]
[1769018469207,3.4449497,2902.8,2901.5,6.61865594]
[1769018469412,6.8898994,2902.8,2901.5,6.61865594]
[1769018470023,10.3348491,2902.8,2901.2,0.6419668]
[1769018470197,6.8898994,2902.8,2901.2,0.6419668]
[1769018470403,0.79233044,2902.7,2901.3,0.66206559]
[1769018470946,0.001,2901.6,2901.3,0.66206559]
[1769018471147,0.79233044,2902.7,2901.3,0.66206559]
[1769018471453,6.89037414,2902.6,2901.3,0.66206559]
[1769018473059,6.89037414,2902.6,2901.3,7.28072153]
[1769018473260,8.00314232,2902.6,2901.4,0.66949799]
[1769018474685,6.89003739,2902.8,2901.5,6.61865594]
[1769018475230,3.44501786,2902.8,2901.5,6.61865594]
[1769018475429,6.89003572,2902.8,2901.5,6.61865594]
[1769018476177,3.44501786,2902.8,2901.5,6.61865594]
[1769018476504,3.44501786,2902.8,2901.6,7.70445221]
[1769018476861,6.89003572,2902.8,2901.6,7.70445221]
[1769018478715,6.89003572,2902.8,2901.6,0.72881539]
[1769018478716,6.79674178,2902.7,2901.6,0.72881539]
[1769018479005,6.79674178,2902.7,2901.2,6.97563682]
[1769018479404,6.89037414,2902.6,2901.2,6.97563682]
[1769018482055,3.44518707,2902.6,2901.2,6.97563682]
[1769018482345,4.47829602,2902.9,2901.3,6.97563682]
[1769018482515,3.44464439,2903.1,2901.3,6.97563682]
[1769018482706,6.88928878,2903.1,2901.3,6.97563682]
[1769018482902,0.001,2903.6,2901.4,7.05196078]
[1769018483233,3.44505856,2903.6,2901.7,6.97563682]
[1769018483435,3.44505856,2903.6,2902.1,6.97563682]
[1769018483436,0.001,2903.6,2902.1,6.97563682]
[1769018483648,0.001,2903.6,2902.3,6.97563682]
[1769018483806,0.001,2903.6,2902.5,6.97563682]
[1769018485101,0.001,2903.6,2902.4,1.04212987]
[1769018485340,0.001,2903.6,2902.1,6.97563682]
[1769018485847,0.001,2903.6,2902.2,6.97563682]
[1769018487613,6.8890011,2903.6,2902.2,6.97563682]
[1769018488011,3.44500055,2903.6,2902.2,6.97563682]
[1769018488353,0.001,2903.6,2902.3,6.97563682]
[1769018488553,0.001,2903.6,2902.5,6.97563682]
[1769018489253,0.001,2903.6,2902.4,1.38669519]
[1769018489413,6.79774178,2903.6,2902.1,6.97563682]
[1769018489859,6.79674178,2903.4,2901.6,6.97563682]
[1769018490651,6.79674178,2903.4,2901.7,10.42186812]
[1769018490851,6.79674178,2903.4,2902.0,6.97563682]
[1769018491054,1.36849801,2903.3,2902.1,1.04216479]
[1769018494645,6.79774178,2903.1,2901.4,0.002]
[1769018494844,13.6861665,2903.0,2901.4,0.002]
[1769018495483,13.6861665,2903.0,2901.4,6.97763682]
[1769018495777,1.36871665,2902.9,2901.5,8.36274295]
[1769018496178,8.16545843,2902.9,2901.5,1.38710613]
[1769018496387,8.16545843,2902.9,2901.4,0.002]
[1769018497034,6.79674178,2902.7,2901.4,0.002]
[1769018498980,6.79674178,2902.5,2901.4,0.002]
[1769018501444,6.89084894,2902.4,2901.4,0.002]
[1769018501745,1.36871665,2902.9,2901.4,6.97763682]
[1769018501945,3.4449497,2902.8,2901.5,0.69776368]
[1769018502456,3.4449497,2902.8,2901.4,0.002]
[1769018502457,6.79674178,2902.7,2901.4,0.002]
[1769018503682,6.79674178,2902.5,2901.4,0.002]
[1769018504046,6.89037414,2902.6,2901.4,6.97763682]
[1769018505080,3.44471236,2903.0,2901.4,6.97763682]
[1769018505245,3.44471236,2903.0,2901.6,6.97563682]
[1769018505246,6.88953511,2903.0,2901.6,6.97563682]
[1769018505671,6.89018742,2903.1,2901.6,6.97563682]
[1769018506177,10.33478113,2903.1,2901.6,6.97563682]
[1769018506380,6.85421993,2903.0,2901.5,0.69776368]
[1769018506679,6.85421993,2903.0,2901.4,0.002]
[1769018507045,6.85421993,2903.0,2901.6,0.002]
[1769018507265,6.85521993,2902.7,2901.6,0.002]
[1769018507662,6.89037414,2902.6,2901.6,0.002]
[1769018508075,17.18978114,2902.6,2901.6,0.002]
[1769018508282,8.57329804,2902.5,2901.6,0.002]
[1769018510374,6.89084894,2902.4,2901.6,0.002]
[1769018510582,10.33627341,2902.4,2901.6,0.002]
[1769018511286,6.89084894,2902.4,2901.6,0.002]
[1769018511700,7.46084894,2902.4,2901.6,0.002]
[1769018511859,0.001,2902.7,2901.7,7.3523513]
[1769018512204,0.001,2902.7,2901.9,7.3523513]
[1769018512656,0.001,2902.7,2901.8,0.73543513]
[1769018512860,0.001,2902.7,2901.6,0.002]
[1769018514587,6.85421993,2902.5,2901.6,0.002]
[1769018515601,6.89037414,2902.6,2901.6,0.002]
[1769018516491,10.33556121,2902.6,2901.6,0.002]
[1769018516799,6.85421993,2902.5,2901.6,0.002]
[1769018517013,6.85421993,2902.3,2901.6,0.002]
[1769018518627,6.89132382,2902.2,2901.6,0.002]
[1769018518793,7.12531044,2902.1,2901.1,0.002]
[1769018519308,7.16230072,2902.1,2900.3,7.07925482]
[1769018519508,7.16230072,2902.1,2900.2,0.002]
[1769018519693,7.16230072,2902.1,2900.2,3.83e-06]
[1769018519694,7.12531044,2901.9,2900.2,3.83e-06]
[1769018519898,7.12531044,2901.7,2900.4,0.002]
[1769018520525,7.12531044,2901.5,2900.4,0.002]
[1769018520835,7.12531044,2901.3,2900.4,0.002]
[1769018520993,7.12531044,2901.3,2900.2,3.83e-06]
[1769018521190,7.12531044,2901.1,2900.2,3.83e-06]
[1769018521701,6.89308936,2901.5,2900.2,7.07725865]
[1769018521916,7.12531044,2901.4,2900.2,3.83e-06]
[1769018522119,6.89308936,2901.5,2900.2,3.83e-06]
[1769018522348,7.16230072,2902.2,2900.2,7.78518452]
[1769018522529,6.89156128,2902.1,2900.2,7.78518452]
[1769018522692,3.44578064,2902.1,2900.4,7.07725482]
[1769018523094,5.16446795,2902.4,2900.4,7.15357878]
[1769018523296,3.44548984,2902.4,2900.4,7.15357878]
[1769018523527,6.89097968,2902.4,2900.4,7.07725482]
[1769018523831,10.33646952,2902.4,2900.4,7.07725482]
[1769018523998,7.12531044,2902.3,2900.4,7.07725482]
[1769018524199,1.746178,2902.2,2900.5,8.34285933]
[1769018524897,7.12531044,2902.0,2900.5,1.26560451]
[1769018525092,7.12531044,2902.0,2900.2,3.83e-06]
[1769018525093,7.12531044,2902.0,2900.3,10.52510744]
[1769018525628,7.12531044,2902.0,2900.3,7.07725482]
[1769018526027,7.12531044,2901.8,2900.2,3.83e-06]
[1769018526850,7.12531044,2901.6,2900.2,3.83e-06]
[1769018527223,0.03699028,2901.0,2900.2,3.83e-06]
[1769018527427,7.73230072,2901.0,2900.2,3.83e-06]
[1769018528817,7.12531044,2900.8,2899.8,0.002]
[1769018529135,7.12531044,2900.8,2899.2,0.002]
[1769018529333,8.87200329,2900.7,2899.2,0.002]
[1769018529947,8.87200329,2900.7,2899.3,7.07725482]
[1769018529948,1.74669285,2900.7,2899.3,7.07725482]
[1769018530144,7.46441206,2900.9,2899.3,7.07725482]
[1769018530946,10.91161809,2900.9,2899.3,7.07725482]
[1769018531248,6.89441206,2900.9,2899.8,0.002]
[1769018531449,7.46441206,2900.9,2899.8,0.002]
[1769018531649,7.12531044,2900.8,2899.8,0.002]
[1769018531954,1.80369285,2900.7,2899.8,0.002]
[1769018532157,8.92900329,2900.7,2899.8,0.002]
[1769018532822,6.89512514,2900.6,2899.8,0.002]
[1769018534419,17.46799815,2900.6,2899.8,0.002]
[1769018534615,7.12531044,2900.5,2899.5,1e-08]
[1769018534819,7.12531044,2900.3,2899.2,0.002]
[1769018535020,2.09155607,2900.4,2899.2,0.002]
[1769018535021,7.16230072,2900.1,2899.2,0.002]
[1769018535248,7.69531044,2900.0,2899.2,0.002]
[1769018536458,7.69531044,2900.0,2898.5,0.002]
[1769018536625,7.69531044,2900.0,2897.7,6.94727644]
[1769018536825,7.33213485,2899.8,2898.0,6.94727644]
[1769018537063,3.4485416,2899.8,2898.4,6.94927644]
[1769018537262,6.93287507,2900.3,2898.4,6.94927644]
[1769018537419,14.26500992,2900.3,2898.4,6.94927644]
[1769018537751,2.03743934,2900.2,2898.5,7.64220408]
[1769018537954,0.57,2900.2,2898.5,7.64220408]
[1769018538137,0.57,2900.2,2898.5,0.69492764]
[1769018538138,7.90213485,2900.2,2898.5,0.69492764]
[1769018538340,7.90213485,2900.2,2898.4,0.002]
[1769018538548,7.33213485,2899.7,2898.4,0.002]
[1769018538944,6.89774098,2899.5,2898.4,0.002]
[1769018539253,17.67874632,2899.5,2898.4,0.002]
[1769018539631,14.22987583,2899.5,2898.4,0.002]
[1769018539845,0.57,2899.4,2898.4,0.002]
[1769018540054,1.47998758,2899.3,2898.4,0.002]
[1769018540555,8.81212243,2899.3,2897.4,6.94727644]
[1769018541124,10.34768211,2899.2,2897.4,6.94727644]
[1769018541326,10.34768211,2899.2,2897.5,6.94727644]
[1769018541327,3.44922737,2899.2,2897.5,6.94727644]
[1769018541528,6.89820909,2899.4,2897.7,6.94727644]
[1769018541837,3.44863261,2899.7,2897.7,6.94727644]
[1769018542231,3.44854699,2899.8,2897.7,7.0236004]
[1769018542628,3.44854699,2899.8,2898.0,6.94727644]
[1769018542958,6.89709398,2899.8,2898.0,6.94727644]
[1769018543147,6.89709398,2899.8,2897.7,0.07632396]
[1769018543148,3.44875155,2899.6,2898.2,3.4504175]
[1769018543342,3.44875155,2899.6,2898.2,10.39769394]
[1769018543664,6.8975031,2899.6,2898.1,0.5885306]
[1769018543969,7.33213485,2899.3,2897.6,0.002]
[1769018545130,10.34768211,2899.2,2897.6,0.002]
[1769018545748,6.89845474,2899.2,2897.6,0.002]
[1769018545968,3.44922737,2899.2,2897.6,6.94927644]
[1769018546170,3.44875155,2899.6,2897.6,6.94927644]
[1769018546470,0.41384609,2899.5,2897.8,6.94727644]
[1769018547325,6.89797888,2899.4,2897.8,6.94727644]
[1769018547557,6.89797888,2899.4,2897.8,10.39815238]
[1769018547725,6.89797888,2899.4,2897.8,6.94727644]
[1769018547934,10.34696832,2899.4,2897.8,6.94727644]
[1769018548134,1.07608144,2899.3,2897.7,0.69492764]
[1769018548362,1.07608144,2899.3,2897.6,0.002]
[1769018549448,10.34768211,2899.2,2897.6,0.002]
[1769018549741,6.89845474,2899.2,2897.6,0.002]
[1769018550054,6.89845474,2899.2,2897.6,6.94927644]
[1769018550564,10.34768211,2899.2,2897.6,0.002]
[1769018550762,1.19937635,2899.1,2897.7,3.84]
[1769018551772,6.89893066,2899.0,2897.7,3.84]
[1769018552466,6.89893066,2899.0,2897.6,0.002]
[1769018553075,7.33213485,2898.6,2896.7,6.94727644]
[1769018553388,1.2887019,2898.5,2896.7,0.69472764]
[1769018553534,0.57,2898.7,2897.4,6.94727644]
[1769018554370,3.44946533,2899.0,2897.4,6.94727644]
[1769018554570,1.19937635,2899.1,2897.6,6.94727644]
[1769018554748,0.57,2899.3,2897.8,6.94727644]
[1769018555541,0.001,2899.0,2897.8,6.94727644]
[1769018556197,0.001,2899.0,2897.9,6.94727644]
[1769018556789,0.001,2899.0,2897.7,1.08636004]
[1769018557108,0.001,2899.0,2897.6,0.002]
[1769018557258,7.33313485,2899.0,2897.6,0.002]
[1769018557694,7.33213485,2898.8,2897.6,0.002]
[1769018557902,7.33213485,2898.6,2897.4,0.002]
[1769018558073,7.90213485,2898.5,2897.4,0.002]
[1769018558281,0.79021349,2898.4,2897.4,0.002]
[1769018559914,6.9005969,2898.3,2897.4,0.002]
[1769018560118,10.35089535,2898.3,2897.4,0.002]
[1769018560270,7.33213485,2898.2,2896.2,0.002]
[1769018560471,7.33213485,2898.0,2896.2,0.69692764]
[1769018560984,7.33213485,2898.0,2896.2,0.002]
[1769018562008,10.35232407,2897.9,2896.2,0.002]
[1769018562210,10.92332407,2897.9,2896.2,0.002]
[1769018562515,18.25545892,2897.9,2896.2,0.002]
[1769018562675,14.23368423,2897.9,2896.2,0.002]
[1769018562878,1.99436842,2897.8,2896.3,1.0402115]
[1769018563753,1.42336842,2897.8,2896.3,7.98748794]
[1769018563886,18.25545892,2897.9,2896.3,1.0402115]
[1769018564222,18.25545892,2897.9,2896.2,0.002]
[1769018564597,7.33213485,2897.8,2896.2,0.002]
[1769018565021,7.33213485,2897.6,2896.2,0.002]
[1769018565184,7.33213485,2897.3,2896.2,0.002]
[1769018565382,7.33213485,2897.3,2894.0,0.07632396]
[1769018565587,7.33213485,2897.3,2894.5,6.98618115]
[1769018565588,7.0644337,2897.0,2894.5,6.98618115]
[1769018565908,7.0644337,2897.0,2895.1,3.45404136]
[1769018566229,7.0644337,2897.0,2895.0,6.98618115]
[1769018566230,10.92689767,2896.9,2895.0,6.98618115]
[1769018566445,7.0644337,2896.8,2895.0,6.98618115]